fUSD/lending_fUSD_20250221
["ID","MTS","AMOUNT","RATE_DAILY","PERIOD"]
[353907053,1740126742698,-20000.0,0.0001,2]
[353907055,1740126804500,151.54,0.00013918,30]
[353907056,1740126850725,-10000.0,0.0001,2]
[353907058,1740126900792,278.31,8.767e-05,2]
[353907060,1740126994907,-10000.0,0.0001,2]
[353907062,1740127072668,-20000.0,0.0001,2]
[353907073,1740127242643,-800.0,9.968e-05,2]
[353907074,1740127242670,-500.0,9.968e-05,2]
[353907075,1740127242696,-1100.0,9.968e-05,2]
[353907076,1740127242724,-47600.0,0.0001,2]
[353907077,1740127259062,-20000.0,0.0001,2]
[353907078,1740127412673,-800.0,9.968e-05,2]
[353907079,1740127412700,-19200.0,0.0001,2]
[353907080,1740127474861,152.88,8.678e-05,2]
[353907081,1740127491192,-5000.0,0.0001,2]
[353907082,1740127599485,-195.0,0.0001,3]
[353907083,1740127607837,-150.0,9.999e-05,2]
[353907084,1740127607863,-9655.0,9.999e-05,2]
[353907085,1740127731316,-2703.48833899,9.999e-05,2]
[353907086,1740127731342,-5296.51166101,0.0001,2]
[353907102,1740127831924,-300.0,9.999e-05,2]
[353907103,1740127831934,-8158.93972321,0.0001,2]
[353907104,1740127831978,-685.05424735,0.0001,2]
[353907105,1740127831990,-498.92723845,0.0001,2]
[353907106,1740127832030,-9149.05422819,0.0001,2]
[353907107,1740127832042,-1338.5,0.0001,2]
[353907108,1740127832086,-18211.67462433,0.0001,2]
[353907109,1740127832099,-22935.99296211,0.0001,2]
[353907110,1740127832110,-2500.00691497,0.0001,2]
[353907111,1740127832195,-45649.03227229,0.0001,2]
[353907119,1740127837715,-743.34566488,0.0001,2]
[353907120,1740127837768,-688.885,0.0001,2]
[353907121,1740127837779,-6642.96451513,0.0001,2]
[353907122,1740127837821,-5499.63030185,0.0001,2]
[353907123,1740127837877,-1410.18218973,0.0001,2]
[353907124,1740127837886,-533.28679345,0.0001,2]
[353907125,1740127837897,-4365.31421469,0.0001,2]
[353907126,1740127837985,-7080.69797717,0.0001,2]
[353907320,1740127839917,-414.6597793,0.0001,2]
[353907323,1740127839929,-409.41979014,0.0001,2]
[353907325,1740127839940,-50119.70942129,0.0001,2]
[353907337,1740127840088,-512.47442503,0.0001,2]
[353907350,1740127840317,-808.9492575,0.0001,2]
[353907353,1740127840328,-737.85943945,0.0001,2]
[353907355,1740127840338,-501.18084697,0.0001,2]
[353907357,1740127840351,-985.93,0.0001,2]
[353907359,1740127840362,-4115.48653958,0.0001,2]
[353907364,1740127840396,-19825.6,0.0001,2]
[353907648,1740127842909,-445.62002,0.0001,2]
[353907650,1740127842921,-24690.83409114,0.0001,2]
[353907654,1740127842933,-381.52,0.0001,2]
[353907657,1740127842945,-2950.05,0.0001,2]
[353907673,1740127843018,-681.83583395,0.0001,2]
[353907676,1740127843029,-333.39682967,0.0001,2]
[353907697,1740127843129,-2632.86151025,0.0001,2]
[353907701,1740127843140,-4743.9744104,0.0001,2]
[353907704,1740127843152,-12693.4031788,0.0001,2]
[353907999,1740127845763,-6238.06657213,0.0001,2]
[353908020,1740127845953,-229.52893012,0.0001,2]
[353908022,1740127845962,-153.97970258,0.0001,2]
[353908028,1740127846007,-626.8265502,0.0001,2]
[353908030,1740127846018,-484.3126053,0.0001,2]
[353908032,1740127846068,-40613.31226742,0.0001,2]
[353908041,1740127889600,564.52,8.98e-05,2]
[353908042,1740127949677,151.54,0.00013918,30]
[353908043,1740128037491,158.3,8.767e-05,2]
[353908045,1740128387519,13823.49500871,0.0002,120]
[353908046,1740128517151,159.02,8.61e-05,2]
[353908047,1740128523843,402.5610723,0.000205,120]
[353908048,1740128686030,250.0,0.0002,120]
[353908050,1740128721766,-3527.0,9.999e-05,10]
[353908433,1740128775579,150.0,8.36e-05,2]
[353908801,1740128978328,536.29,8.487e-05,2]
[353908802,1740129017016,151.54,0.00013918,30]
[353908817,1740129032012,-150.0,9.846e-05,2]
[353908819,1740129032022,-150.0,9.999e-05,2]
[353908820,1740129032031,-598.408,0.0001,2]
[353908821,1740129032043,-427.6411552,0.0001,2]
[353908822,1740129032117,-1832.1416959,0.0001,2]
[353908823,1740129032128,-706.29087696,0.0001,2]
[353908824,1740129032140,-912.26201413,0.0001,2]
[353908825,1740129032171,-300.0,0.0001,2]
[353908826,1740129032182,-2044.17048353,0.0001,2]
[353908827,1740129032224,-13580.86654249,0.0001,2]
[353908828,1740129032235,-29896.7172,0.0001,2]
[353908829,1740129032247,-3543.5381359,0.0001,2]
[353908830,1740129032256,-550.0,0.0001,2]
[353908831,1740129032265,-515.12074,0.0001,2]
[353908832,1740129032274,-199.26339684,0.0001,2]
[353908833,1740129032283,-1506.68634,0.0001,2]
[353908834,1740129032293,-200.77690826,0.0001,2]
[353908835,1740129032304,-303.50309174,0.0001,2]
[353908836,1740129032313,-494.11,0.0001,2]
[353908837,1740129032322,-503.69,0.0001,2]
[353908838,1740129032331,-499.83,0.0001,2]
[353908839,1740129032341,-417.6257205,0.00010245,2]
[353908840,1740129032350,-500.0,0.00010406,2]
[353908841,1740129032359,-335.37,0.00010419,2]
[353908842,1740129032368,-150.0,0.00010421,2]
[353908843,1740129032377,-171.29,0.00010423,2]
[353908844,1740129032385,-3883.39,0.00010423,2]
[353908845,1740129032394,-183.52,0.00010431,2]
[353908846,1740129032403,-379.99,0.0001047,2]
[353908847,1740129032412,-1000.0,0.00010502,2]
[353908848,1740129032421,-158.93,0.00010503,2]
[353908849,1740129032430,-150.0,0.00010557,2]
[353908850,1740129032440,-150.0,0.00010559,2]
[353908852,1740129032449,-250.0,0.00010561,2]
[353908854,1740129032458,-3927.17,0.00010561,2]
[353908856,1740129032467,-150.0,0.00010573,2]
[353908858,1740129032477,-2000.0,0.00010577,2]
[353908860,1740129032486,-417.6257205,0.00010651,2]
[353908862,1740129032495,-158.93,0.00010661,2]
[353908864,1740129032504,-23900.0,0.00010692,2]
[353908866,1740129032514,-150.0,0.00010696,2]
[353908868,1740129032523,-178.45,0.0001072,2]
[353908870,1740129032532,-536.29,0.00010751,2]
[353908872,1740129032542,-287.33,0.00010764,2]
[353908875,1740129032552,-150.0,0.00010789,2]
[353908877,1740129032561,-439.29,0.000108,2]
[353908879,1740129032570,-878.71,0.000108,2]
[353908880,1740129032578,-150.0,0.000108,2]
[353908882,1740129032587,-264.21,0.000108,2]
[353908884,1740129032596,-150.0,0.000108,2]
[353908888,1740129032606,-217.44,0.000108,2]
[353908890,1740129032615,-150.0,0.000108,2]
[353908893,1740129032624,-150.0,0.000108,2]
[353908896,1740129032633,-158.93,0.00010818,2]
[353908899,1740129032644,-150.0,0.00010835,2]
[353908902,1740129032658,-417.62572052,0.00010851,2]
[353908905,1740129032666,-2000.0,0.00010855,2]
[353908908,1740129032675,-289.6,0.00010886,2]
[353908911,1740129032685,-150.0,0.00010891,2]
[353908914,1740129032694,-150.0,0.00010894,2]
[353908917,1740129032703,-439.29,0.000109,2]
[353908920,1740129032712,-150.0,0.000109,2]
[353908923,1740129032721,-150.0,0.000109,2]
[353908926,1740129032730,-150.0,0.000109,2]
[353908929,1740129032739,-440.33,0.000109,2]
[353908932,1740129032748,-438.65,0.000109,2]
[353908935,1740129032757,-440.33,0.000109,2]
[353908937,1740129032766,-150.0,0.000109,2]
[353908940,1740129032775,-150.0,0.000109,2]
[353908943,1740129032784,-150.0,0.000109,2]
[353908946,1740129032793,-150.0,0.000109,2]
[353908949,1740129032802,-150.0,0.000109,2]
[353908952,1740129032811,-204.63806397,0.000109,2]
[353908955,1740129032820,-205.05140187,0.000109,2]
[353908958,1740129032829,-150.0,0.00010908,2]
[353908961,1740129032838,-1525.44,0.00010913,2]
[353908964,1740129032847,-300.0,0.00010927,2]
[353908967,1740129032855,-227.68,0.00010945,2]
[353908969,1740129032864,-2181.99,0.00010947,2]
[353908972,1740129032873,-200.0,0.00010959,2]
[353908975,1740129032882,-150.0,0.00010999,2]
[353908977,1740129032891,-150.0,0.00010999,2]
[353908979,1740129032900,-150.0,0.00011058,2]
[353908981,1740129032909,-700.0,0.00011064,2]
[353908983,1740129032918,-1506.68635,0.000111,2]
[353908985,1740129032927,-150.0,0.00011198,2]
[353908987,1740129032937,-273.92,0.00011241,2]
[353908989,1740129032948,-151.0,0.0001126,2]
[353908991,1740129032957,-500.0,0.00011338,2]
[353908993,1740129032967,-1100.0,0.00011338,2]
[353908995,1740129032976,-150.0,0.00011368,2]
[353908997,1740129032986,-700.0,0.000114,4]
[353908999,1740129032995,-1400.0,0.000115,4]
[353909001,1740129033005,-151.0,0.00011555,2]
[353909003,1740129033014,-150.0,0.00011591,2]
[353909005,1740129033023,-2200.0,0.000116,4]
[353909007,1740129033033,-150.0,0.00011662,2]
[353909009,1740129033042,-301.73,0.00011678,2]
[353909011,1740129033052,-2900.0,0.000117,4]
[353909013,1740129033062,-3700.0,0.000118,4]
[353909015,1740129033071,-1000.0,0.00011815,2]
[353909017,1740129033081,-700.0,0.000119,4]
[353909019,1740129033090,-151.0,0.00011999,2]
[353909021,1740129033100,-600.0,0.00012,2]
[353909023,1740129033110,-873.77026339,0.00012,3]
[353909025,1740129033119,-150.0,0.00012187,2]
[353909027,1740129033128,-9114.5346,0.00012198,2]
[353909029,1740129033139,-3363.0527,0.00012229,2]
[353909031,1740129033148,-150.0,0.0001224,2]
[353909033,1740129033158,-150.0,0.00012241,2]
[353909035,1740129033168,-150.0,0.0001228,2]
[353909037,1740129033177,-150.0,0.0001229,2]
[353909039,1740129033187,-19522.4198,0.00012298,2]
[353909041,1740129033197,-153.61172358,0.00012298,2]
[353909043,1740129033206,-204.6670033,0.00012298,2]
[353909045,1740129033216,-74841.35430814,0.00012298,2]
[353909047,1740129033225,-315.86913385,0.00012298,2]
[353909049,1740129033235,-1258.3183,0.00012298,2]
[353909051,1740129033245,-836.902,0.00012298,2]
[353909053,1740129033254,-861.207,0.00012298,2]
[353909055,1740129033264,-1000.0,0.00012298,2]
[353909057,1740129033273,-545.4791,0.00012298,2]
[353909059,1740129033283,-227.68,0.00012313,2]
[353909061,1740129033292,-220.0,0.00012328,2]
[353909063,1740129033301,-189.668547,0.00012329,2]
[353909065,1740129033310,-151.0,0.00012329,2]
[353909067,1740129033320,-269.909582,0.00012329,2]
[353909069,1740129033329,-151.0,0.00012329,2]
[353909071,1740129033338,-151.0,0.00012329,2]
[353909073,1740129033348,-151.0,0.00012329,2]
[353909075,1740129033357,-240.5034,0.00012329,2]
[353909077,1740129033366,-240.5034,0.00012329,2]
[353909079,1740129033376,-151.0,0.00012329,2]
[353909081,1740129033385,-151.0,0.00012329,2]
[353909083,1740129033394,-151.747621,0.00012329,2]
[353909084,1740129033403,-151.0,0.00012329,2]
[353909087,1740129033413,-151.0,0.00012329,2]
[353909089,1740129033423,-184.272323,0.00012329,2]
[353909090,1740129033433,-201.553968,0.00012329,2]
[353909111,1740129033442,-201.553968,0.00012329,2]
[353909113,1740129033633,-244.089518,0.00012329,2]
[353909115,1740129033644,-244.089518,0.00012329,2]
[353909117,1740129033657,-151.0,0.00012329,2]
[353909119,1740129033667,-151.0,0.00012329,2]
[353909121,1740129033676,-151.0,0.00012329,2]
[353909123,1740129033686,-151.0,0.00012329,2]
[353909125,1740129033697,-150.0,0.00012345,2]
[353909127,1740129033708,-1506.68635,0.0001235,2]
[353909129,1740129033717,-150.0,0.00012356,2]
[353909131,1740129033727,-1000.0,0.00012397,2]
[353909133,1740129033737,-807.37619049,0.00012397,3]
[353909135,1740129033747,-188961.4153161,0.00012398,3]
[353909137,1740129033760,-1050.0,0.00012398,3]
[353909140,1740129033771,-7302.49710665,0.00012398,3]
[353909142,1740129033783,-2010.06740946,0.00012398,3]
[353909155,1740129037901,-2358.57625377,0.00012397,3]
[353909156,1740129037955,-3261.41321144,0.00012397,3]
[353909157,1740129038013,-722.25494269,0.00012397,3]
[353909158,1740129038024,-3312.31563914,0.00012397,3]
[353909159,1740129038035,-633.29988076,0.00012397,3]
[353909160,1740129038065,-439.81182328,0.00012397,3]
[353909161,1740129038077,-499.69610402,0.00012397,3]
[353909252,1740129040258,-474.02983164,0.00012397,3]
[353909259,1740129040311,-3379.915,0.00012397,3]
[353909272,1740129040421,-282.87194388,0.00012397,3]
[353909274,1740129040433,-551.6995,0.00012397,3]
[353909279,1740129040471,-2676.28114,0.00012397,3]
[353909281,1740129040482,-984.0842861,0.00012397,3]
[353909287,1740129040525,-6271.888969,0.00012397,3]
[353909289,1740129040536,-83389.05740136,0.00012397,3]
[353909551,1740129045952,-495.71226737,0.00012298,2]
[353909552,1740129046058,-2531.67181047,0.00012298,2]
[353909553,1740129046067,-7079.81278953,0.00012397,3]
[353909554,1740129046111,-765.5990856,0.00012397,3]
[353909555,1740129046165,-168125.49175528,0.00012397,3]
[353909565,1740129954743,400.0,6.94e-05,2]
[353909566,1740129954765,400.0,6.94e-05,2]
[353909567,1740129954788,400.0,6.94e-05,2]
[353909568,1740129954810,94.79093396,6.94e-05,2]
[353909570,1740129966483,305.20906604,8e-05,2]
[353909571,1740129966504,400.0,8e-05,2]
[353909572,1740129966541,330.78719602,8e-05,2]
[353909591,1740130154346,559.03,9.058e-05,2]
[353909619,1740130232225,-981.03269584,9.9e-05,2]
[353909621,1740130232236,-211.50659333,9.968e-05,2]
[353909622,1740130232281,-688.49340667,9.968e-05,2]
[353909623,1740130232295,-500.0,9.968e-05,2]
[353909624,1740130232306,-501.23613082,9.973e-05,2]
[353909625,1740130232318,-5165.33345893,9.999e-05,2]
[353909626,1740130232328,-348.99522279,9.999e-05,2]
[353909627,1740130232339,-500.0,9.999e-05,2]
[353909628,1740130232350,-173.35091462,9.999e-05,2]
[353909629,1740130232360,-500.0,9.999e-05,2]
[353909630,1740130232371,-281.69060875,9.999e-05,2]
[353909631,1740130232382,-550.0,0.0001,2]
[353909632,1740130232393,-2910.06109589,0.0001,2]
[353909633,1740130232406,-6000.0,0.0001,2]
[353909634,1740130232419,-579.36353194,0.0001,2]
[353909635,1740130232432,-491.92729959,0.0001,2]
[353909636,1740130232470,-4013.32272816,0.0001,2]
[353909637,1740130232483,-391.64415528,0.0001,2]
[353909638,1740130232512,-2666.35223523,0.0001,2]
[353909639,1740130232612,-474.0,0.0001,2]
[353909640,1740130232723,-500.0,0.0001,2]
[353909658,1740130238166,-2827.8,0.0001,2]
[353909661,1740130238224,-13955.51505357,0.0001,2]
[353909662,1740130238334,-18367.0619212,0.0001,2]
[353909663,1740130238350,-10269.0612667,0.0001,2]
[353909664,1740130238361,-11929.12256,0.0001,2]
[353909665,1740130238372,-5934.421322,0.0001,2]
[353909666,1740130238384,-12509.62511131,0.0001,2]
[353909673,1740130240484,-574.1757702,0.0001,2]
[353909674,1740130240541,-51418.48983128,0.0001,2]
[353909675,1740130240600,-2255.6274543,0.0001,2]
[353909717,1740130243418,-1803.93405272,0.0001,2]
[353909738,1740130246247,-703.42655332,0.0001,2]
[353909739,1740130246359,-7842.73634585,0.0001,2]
[353909740,1740130246637,-454.03980588,0.0001,2]
[353909742,1740130246649,-551.98387777,0.0001,2]
[353909743,1740130304453,151.54,0.00013918,30]
[353909745,1740130353217,272.36,8.767e-05,2]
[353909747,1740130428925,2785.56533348,0.000205,120]
[353909758,1740130892462,-2490.557,9.8e-05,2]
[353909759,1740130892487,-176.052,9.8e-05,2]
[353909760,1740130892513,-900.0,9.968e-05,2]
[353909761,1740130892542,-2433.391,0.0001,2]
[353910169,1740131227497,-200.0,0.00012762,10]
[353910528,1740131390307,531.07,8.872e-05,2]
[353910549,1740131431408,-800.0,9.968e-05,2]
[353910552,1740131431420,-150.0,9.973e-05,2]
[353910555,1740131431429,-28600.56976928,0.0001,2]
[353910559,1740131431463,-3450.0,0.0001,2]
[353910565,1740131435835,-1025.55818525,0.0001,2]
[353910566,1740131435847,-13819.10558604,0.0001,2]
[353910567,1740131436001,-6200.59074148,0.0001,2]
[353910568,1740131436013,-2021.717,0.0001,2]
[353910569,1740131436026,-543.46441461,0.0001,2]
[353910570,1740131436039,-4699.69194116,0.0001,2]
[353910571,1740131436057,-5464.46504549,0.0001,2]
[353910572,1740131436115,-2335.06324627,0.0001,2]
[353910573,1740131436126,-502.85226426,0.0001,2]
[353910574,1740131436136,-500.27282545,0.0001,2]
[353910579,1740131437355,-482.33471843,0.0001,2]
[353910580,1740131437416,-6652.82553985,0.0001,2]
[353910581,1740131437470,-12593.50778833,0.0001,2]
[353910589,1740131439521,-78353.99245507,0.0001,2]
[353910590,1740131439632,-5438.85599993,0.0001,2]
[353910591,1740131439849,-365.78550015,0.0001,2]
[353910828,1740131442514,-405362.51132253,0.0001,2]
[353910830,1740131442524,-76578.28819303,0.0001,2]
[353910832,1740131442533,-753.34317,0.0001,2]
[353910834,1740131442543,-550.0,0.0001,2]
[353910836,1740131442552,-501.77,0.0001,2]
[353910838,1740131442561,-491.32,0.0001,2]
[353910840,1740131442570,-492.46,0.0001,2]
[353910842,1740131442579,-496.77,0.0001,2]
[353910844,1740131442588,-495.36,0.0001,2]
[353910846,1740131442597,-494.34,0.0001,2]
[353910848,1740131442606,-150.18,0.000105,2]
[353910850,1740131442615,-150.54,0.000105,2]
[353910852,1740131442624,-152.22,0.000105,2]
[353910854,1740131442634,-151.51,0.000105,2]
[353910856,1740131442643,-1000.0,0.00010789,2]
[353910858,1740131442652,-250.0,0.00010842,2]
[353910860,1740131442661,-178.45,0.00010845,2]
[353910862,1740131442670,-762.72,0.00010876,2]
[353910864,1740131442680,-15584.21,0.00010895,2]
[353910866,1740131442689,-777.93,0.000109,2]
[353910868,1740131442699,-205.05140187,0.000109,2]
[353910870,1740131442708,-311.91,0.00010913,2]
[353910871,1740131442717,-196.35,0.00010945,2]
[353910872,1740131442727,-200.0,0.00010959,2]
[353910873,1740131442736,-817.12,0.00010959,2]
[353910874,1740131442745,-743.14565214,0.00011,2]
[353910875,1740131442755,-700.0,0.00011064,2]
[353910876,1740131442764,-500.0,0.00011064,2]
[353910877,1740131442774,-194.85968401,0.00011099,2]
[353910878,1740131442783,-194.85968399,0.00011099,2]
[353910879,1740131442792,-194.85968399,0.00011099,2]
[353910880,1740131442801,-194.85968399,0.00011133,2]
[353910881,1740131442811,-531.07,0.00011136,2]
[353910882,1740131442820,-800.0,0.00011338,2]
[353910883,1740131442829,-175.32,0.0001136,2]
[353910884,1740131442838,-300.0,0.00011427,2]
[353910885,1740131442847,-194.85968399,0.00011544,2]
[353910886,1740131442857,-300.0,0.000117,4]
[353910887,1740131442866,-600.0,0.000118,4]
[353910888,1740131442875,-900.0,0.000119,4]
[353910889,1740131442885,-194.85968399,0.00011956,2]
[353910890,1740131442894,-600.0,0.00012,2]
[353910891,1740131442903,-4243.47,0.00012055,2]
[353910892,1740131442912,-1000.0,0.00012138,2]
[353910893,1740131442921,-594.0877425,0.00012149,2]
[353910894,1740131442930,-300.0,0.0001217,2]
[353910895,1740131442940,-300.0,0.00012293,2]
[353910897,1740131442949,-8806.4471,0.00012294,2]
[353910899,1740131442958,-7500.0,0.00012294,2]
[353910900,1740131442967,-427.6600138,0.00012294,2]
[353910901,1740131442976,-165.19054572,0.00012294,2]
[353910902,1740131442986,-300.0,0.00012294,2]
[353910903,1740131442995,-500.0,0.00012298,2]
[353910904,1740131443004,-2000.0,0.00012298,2]
[353910905,1740131443013,-500.0,0.00012298,2]
[353910906,1740131443022,-200.0,0.00012298,2]
[353910907,1740131443031,-220.0,0.00012328,2]
[353910908,1740131443040,-8576.11117087,0.00012361,2]
[353910909,1740131443049,-932.76387854,0.00012361,2]
[353910910,1740131443060,-194.85968399,0.00012367,2]
[353910911,1740131443069,-1232.0,0.00012394,2]
[353910912,1740131443079,-224048.96197702,0.00012394,2]
[353910913,1740131443088,-264281.84834433,0.00012394,2]
[353910914,1740131443097,-4823.13202711,0.00012394,2]
[353910915,1740131443107,-42578.27691399,0.00012394,2]
[353910916,1740131443116,-151.0,0.00012394,2]
[353910917,1740131443125,-151.0,0.00012394,2]
[353910918,1740131443135,-151.0,0.00012394,2]
[353910919,1740131443144,-151.0,0.00012394,2]
[353910920,1740131443153,-408.104241,0.00012394,2]
[353910921,1740131443163,-408.104241,0.00012394,2]
[353910922,1740131443172,-408.104241,0.00012394,2]
[353910923,1740131443181,-408.104241,0.00012394,2]
[353910924,1740131443191,-151.0,0.00012394,2]
[353910925,1740131443200,-151.0,0.00012394,2]
[353910926,1740131443209,-229.649032,0.00012394,2]
[353910927,1740131443219,-151.0,0.00012394,2]
[353910928,1740131443228,-151.0,0.00012394,2]
[353910929,1740131443237,-151.0,0.00012394,2]
[353910931,1740131443246,-151.0,0.00012394,2]
[353910933,1740131443255,-151.0,0.00012394,2]
[353910935,1740131443265,-151.0,0.00012394,2]
[353910937,1740131443274,-151.0,0.00012394,2]
[353910939,1740131443283,-151.0,0.00012394,2]
[353910941,1740131443292,-151.0,0.00012394,2]
[353910943,1740131443301,-151.0,0.00012394,2]
[353910944,1740131443310,-151.0,0.00012394,2]
[353910946,1740131443319,-151.0,0.00012394,2]
[353910948,1740131443328,-151.0,0.00012394,2]
[353910950,1740131443337,-2348.653548,0.00012394,2]
[353910952,1740131443347,-2348.653548,0.00012394,2]
[353910954,1740131443356,-2348.653548,0.00012394,2]
[353910956,1740131443366,-2348.653548,0.00012394,2]
[353910958,1740131443374,-151.0,0.00012394,2]
[353910960,1740131443383,-151.0,0.00012394,2]
[353910962,1740131443392,-198.008296,0.00012394,2]
[353910964,1740131443401,-198.008296,0.00012394,2]
[353910966,1740131443414,-198.008296,0.00012394,2]
[353910967,1740131443423,-198.008296,0.00012394,2]
[353910969,1740131443432,-151.0,0.00012394,2]
[353910971,1740131443440,-151.0,0.00012394,2]
[353910973,1740131443451,-151.0,0.00012394,2]
[353910975,1740131443460,-151.0,0.00012394,2]
[353910977,1740131443469,-151.0,0.00012394,2]
[353910979,1740131443478,-151.0,0.00012394,2]
[353910981,1740131443487,-151.0,0.00012394,2]
[353910983,1740131443496,-151.0,0.00012394,2]
[353910985,1740131443505,-151.0,0.00012394,2]
[353910987,1740131443514,-239.410238,0.00012394,2]
[353910989,1740131443523,-151.0,0.00012394,2]
[353910991,1740131443531,-151.0,0.00012394,2]
[353910993,1740131443541,-199.276118,0.00012394,2]
[353910995,1740131443550,-151.0,0.00012394,2]
[353910997,1740131443559,-151.0,0.00012394,2]
[353910999,1740131443569,-151.0,0.00012394,2]
[353911001,1740131443579,-151.0,0.00012394,2]
[353911003,1740131443589,-151.0,0.00012394,2]
[353911005,1740131443598,-151.0,0.00012394,2]
[353911024,1740131443769,-372.02832,0.00012394,2]
[353911027,1740131443786,-372.02832,0.00012394,2]
[353911029,1740131443796,-372.02832,0.00012394,2]
[353911031,1740131443806,-181.398572,0.00012394,2]
[353911033,1740131443816,-181.398572,0.00012394,2]
[353911035,1740131443826,-372.02832,0.00012394,2]
[353911037,1740131443835,-372.02832,0.00012394,2]
[353911038,1740131443844,-181.398572,0.00012394,2]
[353911040,1740131443854,-372.02832,0.00012394,2]
[353911042,1740131443863,-181.398572,0.00012394,2]
[353911044,1740131443873,-151.0,0.00012394,2]
[353911046,1740131443882,-151.0,0.00012394,2]
[353911048,1740131443892,-151.0,0.00012394,2]
[353911050,1740131443901,-151.0,0.00012394,2]
[353911052,1740131443910,-151.0,0.00012394,2]
[353911054,1740131443920,-151.0,0.00012394,2]
[353911056,1740131443929,-151.0,0.00012394,2]
[353911058,1740131443939,-151.287984,0.00012394,2]
[353911060,1740131443948,-151.0,0.00012394,2]
[353911062,1740131443957,-151.0,0.00012394,2]
[353911064,1740131443966,-151.0,0.00012394,2]
[353911066,1740131443975,-151.0,0.00012394,2]
[353911068,1740131443984,-151.0,0.00012394,2]
[353911069,1740131443993,-151.0,0.00012394,2]
[353911071,1740131444002,-151.0,0.00012394,2]
[353911072,1740131444011,-152.656772,0.00012394,2]
[353911073,1740131444020,-217.251512,0.00012394,2]
[353911074,1740131444029,-217.251512,0.00012394,2]
[353911075,1740131444037,-217.251512,0.00012394,2]
[353911076,1740131444048,-174.155512,0.00012394,2]
[353911077,1740131444058,-174.155512,0.00012394,2]
[353911078,1740131444067,-174.155512,0.00012394,2]
[353911079,1740131444075,-217.251512,0.00012394,2]
[353911080,1740131444084,-217.251512,0.00012394,2]
[353911081,1740131444093,-217.251512,0.00012394,2]
[353911082,1740131444102,-174.155512,0.00012394,2]
[353911083,1740131444111,-174.155512,0.00012394,2]
[353911084,1740131444119,-174.155512,0.00012394,2]
[353911085,1740131444128,-151.0,0.00012394,2]
[353911087,1740131444137,-151.0,0.00012394,2]
[353911089,1740131444147,-151.109343,0.00012394,2]
[353911091,1740131444156,-151.0,0.00012394,2]
[353911092,1740131444165,-151.0,0.00012394,2]
[353911095,1740131444175,-151.0,0.00012394,2]
[353911096,1740131444184,-151.0,0.00012394,2]
[353911098,1740131444193,-151.0,0.00012394,2]
[353911100,1740131444203,-235.69452,0.00012394,2]
[353911102,1740131444211,-153.091569,0.00012394,2]
[353911104,1740131444220,-151.0,0.00012394,2]
[353911106,1740131444229,-151.0,0.00012394,2]
[353911108,1740131444238,-151.0,0.00012394,2]
[353911110,1740131444246,-151.0,0.00012394,2]
[353911112,1740131444255,-151.0,0.00012394,2]
[353911114,1740131444264,-151.0,0.00012394,2]
[353911116,1740131444273,-151.0,0.00012394,2]
[353911118,1740131444282,-199.736665,0.00012394,2]
[353911120,1740131444292,-196.004161,0.00012394,2]
[353911122,1740131444301,-196.004161,0.00012394,2]
[353911124,1740131444310,-165.577319,0.00012394,2]
[353911126,1740131444319,-196.004161,0.00012394,2]